bitfinex/quotes_SOLUSD_20220129
["timestamp","ask_amount","ask_price","bid_price","bid_amount"]
[1643467072832,46.7578,96.949,96.848,2.47744409]
[1643467073233,0.25,96.948,96.849,0.25]
[1643467073434,6.0,96.939,96.849,0.25]
[1643467073634,6.0,96.939,96.85,2.47744409]
[1643467073833,46.7578,96.949,96.851,0.25]
[1643467074036,46.7578,96.949,96.851,102.05]
[1643467074235,0.25,96.948,96.851,0.25]
[1643467074434,46.7578,96.949,96.852,2.47744409]
[1643467074836,46.7578,96.949,96.862,6.0]
[1643467075033,14.86,96.97,96.863,101.8]
[1643467075233,15.485,96.98,96.863,101.8]
[1643467075234,30.345,96.98,96.863,102.05]
[1643467075436,30.345,96.98,96.863,140.21983169]
[1643467075437,14.86,96.98,96.863,140.21983169]
[1643467075637,14.86,96.98,96.873,6.0]
[1643467075836,14.86,96.98,96.874,0.25]
[1643467076038,14.86,96.98,96.864,19.4994376]
[1643467076235,6.0,96.97,96.85,2.47744409]
[1643467076441,14.86,96.96,96.85,2.47744409]
[1643467076639,6.0,96.95,96.842,17.02199351]
[1643467076838,0.25,96.949,96.842,16.02199351]
[1643467077041,6.25,96.949,96.842,16.02199351]
[1643467077340,6.0,96.94,96.842,16.02199351]
[1643467077538,6.0,96.939,96.843,46.48939994]
[1643467077838,6.25,96.939,96.844,0.25]
[1643467078038,6.0,96.93,96.844,0.25]
[1643467078237,0.25,96.929,96.843,46.48939994]
[1643467078438,6.25,96.929,96.843,46.48939994]
[1643467079039,6.25,96.929,96.844,101.8]
[1643467079237,6.25,96.929,96.843,46.48939994]
[1643467079637,6.25,96.929,96.844,0.25]
[1643467079837,6.25,96.929,96.842,16.02199351]
[1643467079838,24.462,96.928,96.842,16.02199351]
[1643467080045,6.0,96.918,96.822,16.94977128]
[1643467080440,0.25,96.917,96.822,16.94977128]
[1643467080739,14.86,96.92,96.823,104.27744409]
[1643467080938,14.86,96.92,96.825,101.8]
[1643467081347,0.25,96.919,96.825,101.8]
[1643467082544,14.86,96.92,96.826,36.84424553]
[1643467082740,14.86,96.94,96.835,6.0]
[1643467082940,46.8874,96.958,96.836,107.8]
[1643467083144,46.8874,96.979,96.841,101.8]
[1643467083341,46.8874,96.979,96.85,14.86]
[1643467083543,46.8874,96.979,96.86,6.0]
[1643467083743,46.8874,96.979,96.861,43.62258021]
[1643467083944,15.486,96.99,96.862,101.8]
[1643467084144,6.0,96.98,96.872,6.0]
[1643467084544,6.0,96.979,96.861,91.50845688]
[1643467084948,6.0,96.979,96.862,21.14783818]
[1643467085150,47.8568,96.989,96.863,101.8]
[1643467085346,47.8568,96.989,96.863,102.05]
[1643467085571,47.8568,96.989,96.863,0.25]
[1643467085777,0.25,96.988,96.863,0.25]
[1643467086377,47.8568,96.989,96.863,0.25]
[1643467086674,47.8568,96.989,96.862,18.67039409]
[1643467087274,47.8568,96.989,96.872,6.0]
[1643467087473,47.8568,96.989,96.873,101.8]
[1643467087675,47.8568,96.989,96.875,101.8]
[1643467087873,0.25,96.988,96.876,0.25]
[1643467088276,0.25,96.988,96.876,2.72744409]
[1643467088475,0.25,96.988,96.877,2.47744409]
[1643467088875,6.0,96.979,96.878,0.25]
[1643467089275,0.25,96.978,96.878,0.25]
[1643467089676,6.0,96.979,96.879,2.47744409]
[1643467089877,47.8568,96.989,96.886,101.8]
[1643467090278,47.8568,96.989,96.887,0.25]
[1643467090676,47.8568,96.989,96.887,2.72744409]
[1643467090876,47.8568,96.989,96.888,2.47744409]
[1643467091077,47.8568,96.989,96.889,101.8]
[1643467091281,47.8568,96.989,96.889,102.05]
[1643467091478,47.8568,96.989,96.89,2.47744409]
[1643467091684,47.8568,96.989,96.891,45.24016845]
[1643467091880,47.8568,96.989,96.892,101.8]
[1643467092079,47.8568,96.989,96.892,104.27744409]
[1643467092279,47.8568,96.989,96.893,0.25]
[1643467092479,14.86,96.99,96.893,2.72744409]
[1643467092680,1.39528233,97.025,96.903,101.8]
[1643467092881,15.476,97.04,96.904,0.25]
[1643467092882,47.001,97.032,96.904,0.25]
[1643467093081,1.39528233,97.043,96.913,6.0]
[1643467093281,1.39528233,97.043,96.914,102.05]
[1643467093481,1.39528233,97.043,96.914,118.84163114]
[1643467093681,1.39528233,97.04,96.925,101.8]
[1643467093883,1.39528233,97.044,96.926,41.99752446]
[1643467094282,0.25,97.043,96.927,101.8]
[1643467094482,26.11638233,97.049,96.927,104.27744409]
[1643467094682,24.7211,97.049,96.937,6.0]
[1643467094880,24.7211,97.049,96.928,0.25]
[1643467094881,6.0,97.039,96.938,102.05]
[1643467095082,6.0,97.039,96.928,13.51907523]
[1643467095286,14.86,97.03,96.928,2.72744409]
[1643467095683,6.0,97.02,96.928,2.72744409]
[1643467096281,0.25,97.029,96.928,2.72744409]
[1643467098482,0.25,97.029,96.929,2.47787074]
[1643467098883,0.25,97.029,96.93,0.25]
[1643467099685,46.5381,97.029,96.93,0.25]
[1643467100084,14.86,97.03,96.93,0.25]
[1643467100285,14.86,97.03,96.931,2.47787074]
[1643467100687,14.86,97.03,96.932,0.25]
[1643467101095,14.86,97.03,96.933,2.47787074]
[1643467101290,14.86,97.03,96.938,101.8]
[1643467101688,14.86,97.03,96.939,0.25]
[1643467103094,0.25,97.029,96.939,0.25]
[1643467103490,0.25,97.029,96.94,2.47787074]
[1643467103893,22.9427,97.029,96.941,0.25]
[1643467104292,22.9427,97.029,96.926,41.74752446]
[1643467104491,6.0,97.019,96.926,41.74752446]
[1643467104691,14.86,97.01,96.926,41.74752446]
[1643467104892,0.25,97.009,96.926,41.74752446]
[1643467105092,6.0,97.0,96.926,41.74752446]
[1643467105393,0.25,96.999,96.926,41.74752446]
[1643467105594,6.25,96.999,96.926,41.74752446]
[1643467105994,6.0,96.99,96.926,41.74752446]
[1643467106192,6.0,96.99,96.927,0.25]
[1643467106394,0.25,96.989,96.927,0.25]
[1643467107195,0.25,96.989,96.926,41.74752446]
[1643467107993,0.25,96.989,96.927,0.25]
[1643467108295,0.25,96.999,96.927,0.25]
[1643467108495,0.25,96.999,96.927,102.05]
[1643467108697,47.7362,97.009,96.928,2.47787074]
[1643467108894,47.7362,97.009,96.929,0.25]
[1643467109303,14.86,97.02,96.93,2.47787074]
[1643467109695,14.86,97.02,96.931,0.25]
[1643467110098,14.86,97.02,96.932,2.47787074]
[1643467110297,14.86,97.02,96.933,0.25]
[1643467110698,14.86,97.02,96.934,2.47787074]
[1643467110901,14.86,97.02,96.935,0.25]
[1643467111200,47.2049,97.047,96.936,2.47787074]
[1643467111403,47.2049,97.047,96.938,101.8]
[1643467111598,14.86,97.06,96.948,6.0]
[1643467111800,14.86,97.06,96.949,102.05]
[1643467112000,14.86,97.06,96.959,6.0]
[1643467112205,14.86,97.06,96.961,35.96829111]
[1643467112402,14.86,97.06,96.962,102.05]
[1643467112600,14.86,97.06,96.962,104.52787074]
[1643467112801,14.86,97.06,96.963,2.47787074]
[1643467113204,0.25,97.059,96.964,0.25]
[1643467113406,0.25,97.059,96.962,0.25]
[1643467113903,0.25,97.059,96.962,102.05]
[1643467114103,6.0,97.05,96.961,35.96829111]
[1643467114305,14.86,97.04,96.935,2.47787074]
[1643467114504,6.0,97.03,96.925,101.8]
[1643467114702,14.86,97.02,96.925,101.8]
[1643467114903,0.25,97.019,96.925,101.8]
[1643467115302,0.25,97.019,96.95,44.66342595]
[1643467115703,14.86,97.02,96.951,2.47787074]
[1643467116009,14.86,97.02,96.95,44.66342595]
[1643467116010,14.86,97.02,96.952,0.25]
[1643467116205,14.86,97.02,96.951,2.47787074]
[1643467116404,14.86,97.02,96.952,0.25]
[1643467116603,14.86,97.02,96.953,2.47787074]
[1643467116809,14.86,97.02,96.95,44.41342595]
[1643467117006,6.0,97.01,96.926,2.47787074]
[1643467117207,6.0,97.01,96.925,101.8]
[1643467117405,6.0,97.01,96.88,15.478]
[1643467117406,14.86,97.0,96.889,1.43247212]
[1643467117608,6.0,96.99,96.889,1.43247212]
[1643467117807,6.0,96.99,96.879,1.43247212]
[1643467117808,0.25,96.989,96.879,1.43247212]
[1643467118005,0.25,96.989,96.91,38.96568853]
[1643467119433,0.25,96.989,96.888,1.43247212]
[1643467119628,0.25,96.989,96.885,1.43247212]
[1643467120430,0.25,96.989,96.907,40.81555485]
[1643467121630,20.86,96.99,96.937,36.83180602]
[1643467122230,14.86,96.99,96.913,2.47734586]
[1643467122633,14.86,97.01,96.914,0.25]
[1643467123034,6.0,97.0,96.915,2.47734586]
[1643467123233,15.482,97.01,96.916,33.89664296]
[1643467123434,14.86,96.99,96.916,33.89664296]
[1643467123638,14.86,96.99,96.917,0.25]
[1643467124236,0.25,96.989,96.917,0.25]
[1643467124439,14.86,96.99,96.917,0.25]
[1643467125037,14.86,96.99,96.917,2.72734586]
[1643467125437,14.86,96.99,96.917,0.25]
[1643467125838,14.86,96.99,96.917,2.72734586]
[1643467128642,14.86,96.99,96.917,0.25]
[1643467128842,14.86,96.99,96.918,2.47734586]
[1643467128843,0.25,96.989,96.918,2.47734586]
[1643467129242,0.25,96.989,96.916,33.89664296]
[1643467130243,0.25,96.989,96.898,2.47734586]
[1643467130451,47.7045,96.989,96.899,0.25]
[1643467130844,47.7045,96.989,96.9,2.47734586]
[1643467131146,47.7045,96.989,96.902,101.8]
[1643467131348,47.7045,96.989,96.903,0.25]
[1643467131546,47.7045,96.989,96.903,2.72734586]
[1643467131743,47.7045,96.989,96.904,2.47734586]
[1643467132348,47.7045,96.989,96.905,0.25]
[1643467132944,47.7045,96.989,96.906,2.47734586]
[1643467133346,47.7045,96.989,96.907,0.25]
[1643467134948,47.7045,96.989,96.907,2.72657187]
[1643467135148,47.7045,96.989,96.907,2.47657187]
[1643467135350,47.7045,96.989,96.908,0.25]
[1643467135748,47.7045,96.989,96.909,2.47657187]
[1643467136150,47.7045,96.989,96.908,0.25]
[1643467136349,6.0,96.979,96.903,0.25]
[1643467136752,0.25,96.978,96.903,2.72657187]
[1643467136949,0.25,96.978,96.904,2.47657187]
[1643467137349,0.25,96.978,96.905,0.25]
[1643467137752,0.25,96.988,96.906,2.47657187]
[1643467137982,6.0,96.979,96.87,1.43247212]
[1643467138152,14.86,96.97,96.859,1.43247212]
[1643467138351,14.86,96.97,96.855,101.8]
[1643467138352,22.9341,96.969,96.855,101.8]
[1643467138752,6.0,96.959,96.857,145.74502879]
[1643467138952,14.86,96.96,96.867,6.0]
[1643467139256,6.0,96.95,96.868,0.25]
[1643467139452,6.0,96.95,96.857,148.22160066]
[1643467139453,6.0,96.95,96.858,0.25]
[1643467140053,0.25,96.949,96.858,0.25]
[1643467140856,48.5096,96.949,96.858,0.25]
[1643467141055,6.0,96.939,96.858,0.25]
[1643467141257,6.0,96.939,96.857,145.74502879]
[1643467141258,0.25,96.938,96.857,145.74502879]
[1643467142256,6.0,96.939,96.857,145.74502879]
[1643467142656,6.0,96.939,96.858,0.25]
[1643467143056,48.2596,96.949,96.858,0.25]
[1643467143860,48.2596,96.949,96.857,145.74502879]
[1643467144058,0.25,96.948,96.857,145.74502879]
[1643467145262,48.2596,96.949,96.858,0.25]
[1643467146565,0.25,96.948,96.858,0.25]
[1643467147765,0.25,96.948,96.857,145.74502879]
[1643467148363,6.0,96.939,96.857,145.74502879]
[1643467148763,6.0,96.939,96.858,0.25]
[1643467149765,0.25,96.938,96.858,0.25]
[1643467150771,6.0,96.939,96.858,0.25]
[1643467151173,6.0,96.939,96.857,143.99502879]
[1643467151572,48.2596,96.949,96.857,143.99502879]
[1643467151782,48.2596,96.949,96.867,6.0]
[1643467152177,48.2596,96.949,96.868,6.0]
[1643467152375,48.2596,96.949,96.869,0.25]
[1643467152994,48.2596,96.949,96.869,102.05]
[1643467153195,0.25,96.948,96.869,102.05]
[1643467153401,48.2596,96.949,96.869,102.05]
[1643467154600,48.2596,96.949,96.869,0.25]
[1643467154801,48.2596,96.949,96.858,0.25]
[1643467155000,0.25,96.948,96.858,0.25]
[1643467155403,0.25,96.948,96.858,102.05]
[1643467156799,0.25,96.948,96.858,101.8]
[1643467157601,6.0,96.939,96.858,101.8]
[1643467157902,0.25,96.938,96.858,101.8]
[1643467159100,0.25,96.948,96.858,101.8]
[1643467159300,0.25,96.948,96.859,0.25]
[1643467159705,0.25,96.948,96.858,101.8]
[1643467159900,6.0,96.939,96.858,101.8]
[1643467160301,0.25,96.938,96.859,0.25]
[1643467161408,0.25,96.948,96.859,0.25]
[1643467161805,0.25,96.948,96.868,6.0]
[1643467162105,0.25,96.948,96.869,101.8]
[1643467162307,0.25,96.948,96.869,0.25]
[1643467163407,0.25,96.948,96.858,0.25]
[1643467163606,0.25,96.948,96.858,102.05]
[1643467164009,6.0,96.939,96.858,102.05]
[1643467164414,0.25,96.938,96.858,102.05]
[1643467165613,48.2596,96.949,96.858,102.05]
[1643467166512,48.2596,96.949,96.869,101.8]
[1643467166911,0.25,96.948,96.87,0.25]
[1643467167111,48.2596,96.949,96.87,0.25]
[1643467167311,0.25,96.948,96.87,0.25]
[1643467167813,6.0,96.939,96.857,42.19502879]
[1643467168014,101.8,96.929,96.855,1.43247212]
[1643467168212,101.8,96.929,96.792,73.9692]
[1643467168213,54.1269901,97.075,96.859,61.12]
[1643467168412,2.78415757,97.028,96.94,2.45167502]
[1643467168612,21.52862194,97.061,96.95,14.86]
[1643467168812,2.78415757,97.06,96.941,49.62551721]
[1643467169012,121.0168,97.068,96.951,48.96295946]
[1643467169213,2.78669523,97.067,96.951,73.30139951]
[1643467169413,2.78669523,97.067,96.952,50.39453342]
[1643467169713,121.0168,97.068,96.97,185.75]
[1643467169913,2.78648543,97.067,96.98,14.86]
[1643467170117,2.78648543,97.067,96.98,200.61]
[1643467170314,2.78648543,97.067,96.981,0.25]
[1643467170614,47.626,97.068,96.981,40.30248956]
[1643467171014,101.8,97.067,96.98,200.61]
[1643467171314,2.78694734,97.066,96.98,200.61]
[1643467171512,101.8,97.067,96.98,200.61]
[1643467171713,47.626,97.068,96.98,200.61]
[1643467172012,6.0,97.058,96.981,42.72597108]
[1643467172614,6.0,97.05,96.981,42.72597108]
[1643467172813,0.25,97.049,96.981,42.72597108]
[1643467173423,47.626,97.068,96.982,0.25]
[1643467173715,47.626,97.068,96.982,24.26592894]
[1643467173916,6.0,97.058,96.982,24.26592894]
[1643467174115,6.0,97.058,96.981,42.72597108]
[1643467174317,101.8,97.057,96.981,42.72597108]
[1643467174517,6.0,97.058,96.981,42.72597108]
[1643467174716,0.25,97.057,96.981,42.72597108]
[1643467174916,0.25,97.067,96.982,2.45336472]
[1643467175119,6.0,97.058,96.982,2.45336472]
[1643467175418,0.25,97.057,96.982,2.45336472]
[1643467176119,4.75,97.058,96.982,2.45336472]
[1643467177321,0.25,97.057,96.982,2.45336472]
[1643467177921,6.25,97.057,96.982,2.45336472]
[1643467178120,6.0,97.048,96.982,2.45336472]
[1643467178328,0.25,97.047,96.982,2.45336472]
[1643467178520,0.25,97.047,96.981,42.72597108]
[1643467179249,0.25,97.047,96.981,41.72597108]
[1643467179420,0.25,97.056,96.981,41.72597108]
[1643467179621,6.0,97.058,96.981,41.72597108]
[1643467180022,47.626,97.068,96.982,2.70336472]
[1643467180322,47.626,97.068,96.983,2.45336472]
[1643467180523,47.626,97.068,96.983,26.71929366]
[1643467180826,47.626,97.068,96.98,200.61]
[1643467181022,6.0,97.058,96.98,200.61]
[1643467181724,0.25,97.057,96.981,37.80731635]
[1643467183624,0.25,97.057,96.98,200.61]
[1643467183825,0.25,97.057,96.98,14.86]
[1643467184025,102.05,97.057,96.95,14.86]
[1643467184432,101.8,97.046,96.95,14.86]
[1643467184730,6.0,97.036,96.951,33.64132972]
[1643467184929,48.3497,97.035,96.951,33.64132972]
[1643467185131,6.0,97.025,96.951,33.64132972]
[1643467185331,0.25,97.024,96.951,33.64132972]
[1643467185731,102.05,97.024,96.95,14.86]
[1643467185935,102.05,97.024,96.915,15.8202]
[1643467186132,6.0,97.014,96.925,6.0]
[1643467186334,0.25,97.013,96.925,6.0]
[1643467186532,6.0,97.01,96.925,6.0]
[1643467186754,0.25,97.009,96.926,33.38987023]
[1643467186952,22.9863,97.009,96.926,33.38987023]
[1643467187552,6.0,96.999,96.936,6.0]
[1643467187753,0.25,96.998,96.94,6.0]
[1643467188052,22.7363,97.009,96.941,36.36292807]
[1643467188253,22.7363,97.009,96.942,0.25]
[1643467189255,0.25,97.008,96.942,0.25]
[1643467189457,0.25,97.008,96.941,36.11292807]
[1643467189857,6.0,96.999,96.941,36.11292807]
[1643467190055,0.25,97.008,96.941,36.11292807]
[1643467190256,0.25,97.008,96.942,0.25]
[1643467190966,0.25,97.008,96.941,36.11292807]
[1643467191361,0.25,97.008,96.942,0.25]
[1643467191555,0.25,97.019,96.942,0.25]
[1643467192057,6.0,97.025,96.942,0.25]
[1643467192255,0.25,97.024,96.942,0.25]
[1643467194155,22.6907,97.034,96.942,0.25]
[1643467194358,22.6907,97.034,96.951,6.0]
[1643467194558,22.6907,97.034,96.95,14.86]
[1643467194757,6.0,97.024,96.912,21.04330723]
[1643467194960,61.12,97.023,96.88,14.86]
[1643467195163,14.86,97.02,96.88,14.86]
[1643467195359,101.8,97.012,96.88,14.86]
[1643467195558,6.0,97.002,96.882,37.45270585]
[1643467195759,0.25,97.001,96.882,37.45270585]
[1643467195960,6.25,97.001,96.883,21.04330723]
[1643467196162,38.1822,97.0,96.883,21.04330723]
[1643467196360,0.25,96.999,96.883,21.04330723]
[1643467196561,6.0,96.99,96.893,6.0]
[1643467196765,23.4865,96.989,96.893,6.0]
[1643467197162,6.0,96.979,96.893,6.0]
[1643467197362,0.25,96.978,96.893,6.0]
[1643467197965,0.25,96.978,96.9,14.86]
[1643467198163,0.25,96.978,96.901,36.35026911]
[1643467198766,0.25,96.978,96.902,0.25]
[1643467198966,6.0,96.979,96.902,0.25]
[1643467199267,0.25,96.978,96.902,0.25]
[1643467199465,38.1802,97.0,96.902,21.29330723]
[1643467199664,0.25,96.988,96.902,21.29330723]
[1643467200064,0.25,96.988,96.902,21.04330723]
[1643467200265,0.25,96.988,96.903,0.25]
[1643467200466,0.25,96.988,96.901,36.35026911]
[1643467201164,0.25,96.988,96.902,0.25]
[1643467201366,0.25,96.988,96.901,36.35026911]
[1643467201772,0.25,96.988,96.902,0.25]
[1643467202270,0.25,96.988,96.901,36.35026911]
[1643467202467,0.25,96.988,96.902,0.25]
[1643467204072,0.25,96.988,96.901,36.35026911]
[1643467204970,6.25,96.988,96.901,36.35026911]
[1643467205172,0.25,96.988,96.901,36.35026911]
[1643467205373,6.0,96.978,96.902,0.25]
[1643467205580,22.6606,96.977,96.902,0.25]
[1643467205975,22.7002,97.0,96.903,21.04330723]
[1643467206175,14.86,97.07,96.911,6.0]
[1643467206377,49.94874068,97.054,96.92,14.86]
[1643467206574,2.77874068,97.053,96.93,6.0]
[1643467206773,2.77874068,97.053,96.94,14.86]
[1643467206974,15.41685816,97.052,96.941,33.89509978]
[1643467207273,3.02874068,97.051,96.941,34.14509978]
[1643467207474,0.25,97.051,96.941,34.14509978]
[1643467207674,15.474,97.04,96.941,34.14509978]
[1643467207876,0.25,97.039,96.941,34.14509978]
[1643467208174,6.0,97.03,96.941,34.14509978]
[1643467208375,23.1511,97.029,96.941,33.89509978]
[1643467208574,23.1511,97.029,96.94,14.86]
[1643467208575,6.0,97.019,96.94,14.86]
[1643467208775,102.05,97.018,96.9,14.86]
[1643467209077,6.0,97.008,96.9,14.86]
[1643467209277,0.25,97.007,96.9,14.86]
[1643467209474,6.0,97.0,96.901,38.89247223]
[1643467209874,25.1554,96.999,96.901,38.89247223]
[1643467210075,28.11209142,96.999,96.901,38.89247223]
[1643467210275,6.0,96.989,96.901,38.89247223]
[1643467210677,0.25,96.988,96.901,38.89247223]
[1643467211077,15.485,96.98,96.901,38.89247223]
[1643467211278,0.25,96.979,96.901,38.89247223]
[1643467211479,6.0,96.97,96.901,38.89247223]
[1643467211685,6.0,96.97,96.88,14.86]
[1643467211879,0.25,96.969,96.881,0.25]
[1643467212679,0.25,96.969,96.881,44.74954647]
[1643467212878,0.25,96.978,96.881,44.74954647]
[1643467213079,15.487,96.96,96.881,44.74954647]
[1643467213278,0.25,96.959,96.881,44.74954647]
[1643467213678,0.25,96.959,96.881,44.49954647]
[1643467214480,15.487,96.96,96.881,44.49954647]
[1643467214680,51.6,97.03,96.881,44.49954647]
[1643467214879,14.86,97.02,96.891,6.0]
[1643467215180,46.7743,97.028,96.901,42.10807066]
[1643467215380,46.7743,97.028,96.902,0.25]
[1643467215581,15.42531022,97.027,96.911,6.0]
[1643467215782,15.42531022,97.027,96.912,0.25]
[1643467215783,18.2074922,97.027,96.912,0.25]
[1643467215982,15.481,97.0,96.91,14.86]
[1643467216182,15.481,97.0,96.911,0.25]
[1643467216383,6.0,96.99,96.911,0.25]
[1643467217284,23.1639,97.016,96.92,6.0]
[1643467217484,23.1639,97.016,96.921,32.98390868]
[1643467217686,6.0,97.006,96.9,14.86]
[1643467217886,0.25,97.005,96.9,14.86]
[1643467218093,6.0,96.997,96.88,14.86]
[1643467218287,48.2624,96.996,96.88,14.86]
[1643467218486,15.483,96.99,96.88,14.86]
[1643467218786,6.0,96.986,96.881,40.69194551]
[1643467218985,6.0,96.98,96.891,6.0]
[1643467219189,0.25,96.985,96.891,6.0]
[1643467219389,0.25,96.989,96.892,0.25]
[1643467219592,0.25,96.989,96.901,39.1760232]
[1643467219787,0.25,96.995,96.902,0.25]
[1643467219986,0.25,96.995,96.911,6.0]
[1643467220190,0.25,96.995,96.902,0.25]
[1643467220615,6.0,96.986,96.902,0.25]
[1643467220813,0.25,96.985,96.902,0.25]
[1643467221219,48.0124,96.996,96.902,0.25]
[1643467221614,6.0,96.986,96.902,0.25]
[1643467222017,48.0124,96.996,96.902,0.25]
[1643467222414,6.0,96.986,96.902,0.25]
[1643467222815,0.25,96.985,96.902,0.25]
[1643467223016,6.0,96.98,96.902,0.25]
[1643467224117,0.25,96.979,96.901,39.1760232]
[1643467224318,0.25,96.979,96.902,0.25]
[1643467224719,0.25,96.979,96.901,39.1760232]
[1643467225926,6.0,96.98,96.901,39.1760232]
[1643467226421,0.25,96.979,96.902,0.25]
[1643467227023,22.8257,96.979,96.902,0.25]
[1643467227224,6.0,96.969,96.902,0.25]
[1643467227624,0.25,96.968,96.902,0.25]
[1643467228024,6.0,96.969,96.902,0.25]
[1643467228323,6.0,96.969,96.902,102.05]
[1643467228525,6.0,96.98,96.902,0.25]
[1643467228724,6.0,96.98,96.902,102.05]
[1643467228925,6.0,96.986,96.902,102.05]
[1643467229535,6.0,96.986,96.902,101.8]
[1643467229825,0.25,96.985,96.902,101.8]
[1643467230227,6.0,96.986,96.902,101.8]
[1643467230427,6.0,96.99,96.902,101.8]
[1643467230627,6.0,97.017,96.902,101.8]
[1643467230828,0.25,97.016,96.903,0.25]
[1643467231431,6.0,97.017,96.903,0.25]
[1643467232428,6.0,97.01,96.903,0.25]
[1643467232635,6.0,97.01,96.902,101.8]
[1643467232636,6.0,97.01,96.901,39.1760232]
[1643467232830,14.86,97.0,96.85,15.7268]
[1643467233030,6.0,96.99,96.85,15.7268]
[1643467233231,48.6828,96.989,96.85,14.86]
[1643467233432,15.485,96.98,96.85,14.86]
[1643467233631,6.0,96.97,96.85,14.86]
[1643467233833,24.2648,96.969,96.851,36.04846924]
[1643467234132,30.0148,96.969,96.852,101.8]
[1643467234332,0.25,96.968,96.852,101.8]
[1643467234534,0.25,96.968,96.854,101.8]
[1643467234732,0.25,96.968,96.861,6.0]
[1643467234936,0.25,96.968,96.87,14.86]
[1643467235132,0.25,96.968,96.871,43.66233405]
[1643467235935,0.25,96.968,96.872,101.8]
[1643467236137,0.25,96.968,96.871,43.66233405]
[1643467236635,0.25,96.968,96.872,0.25]
[1643467237337,0.25,96.968,96.881,6.0]
[1643467237635,0.25,96.968,96.882,6.0]
[1643467237837,6.0,96.969,96.883,101.8]
[1643467238037,5.0,96.979,96.894,101.8]
[1643467238236,5.0,96.979,96.894,134.83393391]
[1643467238436,0.25,96.978,96.904,6.0]
[1643467238638,0.25,96.978,96.895,0.25]
[1643467239464,24.5489,96.988,96.895,0.25]
[1643467240164,24.5489,96.988,96.904,6.0]
[1643467240362,24.5489,96.988,96.905,0.25]
[1643467241364,24.5489,96.988,96.91,6.0]
[1643467241564,24.5489,96.988,96.914,107.8]
[1643467241764,24.5489,96.988,96.915,0.25]
[1643467241964,15.479,97.01,96.915,0.25]
[1643467241965,15.479,97.01,96.925,101.8]
[1643467242166,21.59897777,97.037,96.924,6.0]
[1643467242167,23.3701,97.036,96.927,101.8]
[1643467242365,23.3701,97.036,96.926,37.56530901]
[1643467242366,4.17996301,97.077,96.943,61.12]
[1643467242566,4.17996301,97.077,96.953,6.0]
[1643467242767,6.94948031,97.131,96.981,63.0]
[1643467242968,5.57846636,97.146,96.99,14.86]
[1643467243167,2.60231687,97.13,96.991,6.0]
[1643467243365,14.86,97.16,96.991,6.0]
[1643467243366,10.69823631,97.141,97.0,6.0]
[1643467243565,15.458,97.14,97.01,14.86]